fUSD/lending_fUSD_20260404
["ID","MTS","AMOUNT","RATE_DAILY","PERIOD"]
[419703945,1775322632639,-500.0,0.00013698,2]
[419703946,1775322632649,-500.0,0.00013698,2]
[419703947,1775322632658,-500.0,0.00013698,2]
[419703948,1775322632667,-150.0,0.00013699,2]
[419703949,1775322632676,-166.66,0.00013699,2]
[419703950,1775322632685,-200.0,0.00013699,2]
[419703951,1775322632694,-962.92,0.00013699,2]
[419703952,1775322632703,-500.0,0.00013699,2]
[419703953,1775322632712,-166.66,0.00013836,2]
[419703954,1775322632722,-414.3,0.00013865,2]
[419703955,1775322632731,-3693.42669268,0.00013866,2]
[419703956,1775322632740,-150.0,0.00013901,30]
[419703957,1775322632749,-2000.0,0.00013962,2]
[419703958,1775322632759,-166.66,0.00013973,2]
[419703959,1775322632767,-500.0,0.00013973,2]
[419703960,1775322632777,-200.0,0.00014029,2]
[419703961,1775322632786,-200.0,0.00014029,2]
[419703962,1775322632795,-215.57,0.00014052,2]
[419703963,1775322632804,-1600.0,0.00014067,2]
[419703964,1775322632813,-150.0,0.0001407,2]
[419703965,1775322632822,-3693.42669262,0.00014092,2]
[419703966,1775322632831,-255.0,0.00014105,2]
[419703967,1775322632839,-166.66,0.0001411,2]
[419703968,1775322632849,-200.0,0.00014169,2]
[419703969,1775322632858,-200.0,0.00014169,2]
[419703970,1775322632867,-2500.0,0.00014189,2]
[419703971,1775322632876,-501.67855026,0.00014221,2]
[419703972,1775322632885,-1137.08253403,0.00014221,2]
[419703973,1775322632894,-1000.0,0.00014221,2]
[419703974,1775322632903,-414.31556135,0.00014222,2]
[419703975,1775322632912,-166.66,0.00014247,2]
[419703976,1775322632921,-20819.07,0.00014261,2]
[419703977,1775322632930,-184.8,0.00014281,2]
[419703978,1775322632939,-578.20924308,0.00014289,2]
[419703979,1775322632948,-500.0,0.00014289,2]
[419703980,1775322632957,-211.77639805,0.00014289,2]
[419703981,1775322632967,-500.0,0.00014289,2]
[419703982,1775322632976,-500.0,0.00014289,2]
[419703983,1775322632985,-9552.16786547,0.00014289,2]
[419703984,1775322632995,-500.0,0.00014289,2]
[419703985,1775322633005,-500.0,0.00014289,2]
[419703986,1775322633014,-500.0,0.00014289,2]
[419703987,1775322633023,-500.0,0.00014289,2]
[419703988,1775322633032,-616.84232371,0.00014289,2]
[419703989,1775322633041,-500.0,0.00014289,2]
[419703990,1775322633050,-500.0,0.00014289,2]
[419703991,1775322633059,-500.0,0.00014289,2]
[419703992,1775322633073,-500.0,0.00014289,2]
[419703993,1775322633083,-500.0,0.00014289,2]
[419703994,1775322633092,-500.0,0.00014289,2]
[419703995,1775322633101,-500.0,0.00014289,2]
[419703996,1775322633111,-151.0,0.00014289,2]
[419703997,1775322633120,-500.0,0.00014289,2]
[419703998,1775322633129,-500.0,0.00014289,2]
[419703999,1775322633139,-500.0,0.00014289,2]
[419704000,1775322633148,-500.0,0.00014289,2]
[419704001,1775322633157,-174.61919141,0.00014289,2]
[419704002,1775322633166,-807.50902599,0.00014289,2]
[419704003,1775322633176,-170.0,0.00014289,2]
[419704004,1775322633185,-170.0,0.00014289,2]
[419704005,1775322633194,-170.0,0.00014289,2]
[419704006,1775322633203,-170.0,0.00014289,2]
[419704007,1775322633212,-170.0,0.00014289,2]
[419704008,1775322633222,-170.0,0.00014289,2]
[419704009,1775322633231,-170.0,0.00014289,2]
[419704010,1775322633241,-170.0,0.00014289,2]
[419704011,1775322633252,-170.0,0.00014289,2]
[419704012,1775322633262,-170.0,0.00014289,2]
[419704013,1775322633272,-170.0,0.00014289,2]
[419704014,1775322633282,-156.959134,0.00014289,2]
[419704015,1775322633291,-200.0,0.00014311,2]
[419704016,1775322633302,-200.0,0.00014311,2]
[419704017,1775322633312,-3693.42669262,0.00014318,2]
[419704018,1775322633324,-500.0,0.00014344,2]
[419704019,1775322633334,-9905.5980765,0.00014344,2]
[419704020,1775322633344,-151.0,0.00014344,2]
[419704021,1775322633354,-800.0,0.00014356,2]
[419704022,1775322633363,-500.0,0.00014356,2]
[419704023,1775322633373,-166.66,0.00014384,2]
[419704024,1775322633382,-962.92,0.00014384,2]
[419704025,1775322633391,-500.0,0.00014399,2]
[419704026,1775322633401,-10272.10520533,0.00014399,2]
[419704027,1775322633410,-151.0,0.00014399,2]
[419704028,1775322633420,-2810.0,0.000144,2]
[419704029,1775322633430,-150.0,0.000144,2]
[419704030,1775322633440,-150.0,0.000144,2]
[419704031,1775322633449,-150.0,0.000144,2]
[419704032,1775322633459,-150.0,0.000144,2]
[419704033,1775322633468,-150.0,0.000144,2]
[419704034,1775322633478,-150.0,0.000144,2]
[419704035,1775322633487,-150.0,0.000144,2]
[419704036,1775322633497,-150.0,0.000144,2]
[419704037,1775322633506,-150.0,0.000144,2]
[419704038,1775322633516,-150.0,0.000144,2]
[419704039,1775322633525,-150.0,0.000144,2]
[419704040,1775322633534,-150.0,0.000144,2]
[419704041,1775322633543,-150.0,0.000144,2]
[419704042,1775322633555,-150.0,0.000144,2]
[419704043,1775322633566,-200.67348083,0.000144,2]
[419704044,1775322633580,-200.0,0.00014421,2]
[419704045,1775322633592,-200.0,0.00014454,2]
[419704046,1775322633604,-500.0,0.00014454,2]
[419704047,1775322633615,-5888.0,0.00014457,2]
[419704048,1775322633627,-150.0,0.00014473,2]
[419704049,1775322633638,-606.67516,0.00014475,2]
[419704050,1775322633648,-398.99991,0.00014481,2]
[419704051,1775322633658,-150.0,0.00014494,2]
[419704052,1775322633668,-150.0,0.00014494,2]
[419704053,1775322633679,-150.0,0.00014494,2]
[419704054,1775322633689,-166.66,0.00014508,2]
[419704055,1775322633698,-500.0,0.00014509,2]
[419704056,1775322633707,-150.0,0.00014523,2]
[419704057,1775322633717,-150.0,0.00014523,2]
[419704058,1775322633727,-3693.42669262,0.00014544,2]
[419704059,1775322633738,-150.0,0.00014545,2]
[419704060,1775322633747,-500.0,0.00014548,2]
[419704061,1775322633757,-500.0,0.00014564,2]
[419704062,1775322633766,-150.0,0.00014588,2]
[419704063,1775322633776,-150.0,0.00014588,2]
[419704064,1775322633786,-150.0,0.00014588,2]
[419704065,1775322633796,-239.399945,0.00014594,7]
[419704066,1775322633805,-150.0,0.00014618,2]
[419704067,1775322633815,-500.0,0.00014619,2]
[419704068,1775322633826,-150.0,0.00014646,2]
[419704069,1775322633837,-150.0,0.00014646,2]
[419704070,1775322633848,-150.0,0.00014667,2]
[419704071,1775322633859,-150.0,0.00014667,2]
[419704072,1775322633869,-500.0,0.00014674,2]
[419704073,1775322633878,-150.0,0.00014682,2]
[419704074,1775322633888,-150.0,0.00014682,2]
[419704075,1775322633898,-150.0,0.00014682,2]
[419704076,1775322633909,-150.0,0.00014691,2]
[419704077,1775322633921,-500.0,0.00014729,2]
[419704078,1775322633931,-150.0,0.0001475,30]
[419704079,1775322633940,-215.57,0.00014755,2]
[419704080,1775322633950,-150.0,0.00014764,2]
[419704081,1775322633959,-1500.0,0.00014768,2]
[419704082,1775322633969,-150.0,0.00014769,2]
[419704083,1775322633978,-150.0,0.00014769,2]
[419704084,1775322633988,-3693.42669262,0.0001477,2]
[419704085,1775322633998,-150.0,0.00014776,2]
[419704086,1775322634007,-150.0,0.00014776,2]
[419704087,1775322634019,-150.0,0.00014776,2]
[419704088,1775322634028,-500.0,0.00014784,2]
[419704089,1775322634039,-587.0,0.00014802,2]
[419704090,1775322634048,-150.0,0.00014836,2]
[419704091,1775322634058,-181.08010149,0.00014837,2]
[419704092,1775322634067,-500.0,0.00014839,2]
[419704093,1775322634076,-1730.0,0.00014846,2]
[419704094,1775322634086,-187.00130819,0.0001486,2]
[419704095,1775322634096,-2351.0,0.0001487,2]
[419704096,1775322634106,-150.0,0.00014871,2]
[419704097,1775322634116,-150.0,0.00014871,2]
[419704098,1775322634125,-150.0,0.00014871,2]
[419704099,1775322634135,-150.0,0.00014892,2]
[419704100,1775322634145,-150.0,0.00014892,2]
[419704101,1775322634154,-150.0,0.00014909,2]
[419704102,1775322634164,-150.0,0.00014933,2]
[419704103,1775322634174,-150.0,0.00014933,2]
[419704104,1775322634185,-150.0,0.00014933,2]
[419704105,1775322634196,-1476.5396771,0.0001494,2]
[419704106,1775322634205,-150.0,0.00014965,2]
[419704107,1775322634215,-150.0,0.00014965,2]
[419704108,1775322634224,-150.0,0.00014965,2]
[419704109,1775322634235,-1730.0,0.00014966,2]
[419704110,1775322634245,-1730.0,0.00014968,2]
[419704111,1775322634256,-150.0,0.00014982,2]
[419704112,1775322634266,-166.66,0.00014987,2]
[419704113,1775322634276,-1334.45186948,0.0001499,2]
[419704114,1775322634286,-3693.42669262,0.00014996,2]
[419704115,1775322634296,-300.0,0.00015,2]
[419704116,1775322634306,-2000.0,0.00015,2]
[419704117,1775322634315,-1104.04378611,0.00015,7]
[419704118,1775322635290,-1866.08392942,0.00015,7]
[419704119,1775322635299,-150.0,0.00015015,2]
[419704120,1775322635308,-150.0,0.00015015,2]
[419704121,1775322635318,-1572.0,0.0001504,2]
[419704122,1775322635327,-490.65099871,0.0001505,2]
[419704123,1775322635337,-392.10429392,0.0001505,2]
[419704124,1775322635346,-150.0,0.00015055,2]
[419704125,1775322635355,-150.0,0.00015059,2]
[419704126,1775322635365,-150.0,0.00015059,2]
[419704127,1775322635374,-150.0,0.00015059,2]
[419704128,1775322635383,-653.86,0.00015068,2]
[419704129,1775322635393,-962.92,0.00015068,2]
[419704130,1775322635401,-800.0,0.00015068,2]
[419704131,1775322635411,-1476.53967709,0.00015077,2]
[419704132,1775322635420,-300.0,0.000151,5]
[419704133,1775322635430,-160.9357,0.000151,2]
[419704134,1775322635439,-160.9357,0.000151,2]
[419704135,1775322635448,-2000.0,0.000151,2]
[419704136,1775322635458,-221.31,0.00015102,2]
[419704137,1775322635467,-168.46,0.00015124,2]
[419704138,1775322635476,-150.0,0.00015127,2]
[419704139,1775322635486,-150.0,0.00015138,2]
[419704140,1775322635495,-150.0,0.00015138,2]
[419704141,1775322635504,-150.0,0.00015153,2]
[419704142,1775322635514,-150.0,0.00015153,2]
[419704143,1775322635523,-150.0,0.00015153,2]
[419704144,1775322635533,-168.45,0.00015174,2]
[419704145,1775322635542,-186.62,0.0001518,2]
[419704146,1775322635552,-151.0,0.00015197,2]
[419704147,1775322635561,-154.76030198,0.00015198,2]
[419704148,1775322635570,-5061.29326262,0.00015199,2]
[419704149,1775322635580,-160.9357,0.000152,2]
[419704150,1775322635590,-160.9357,0.000152,2]
[419704151,1775322635600,-150.0,0.000152,2]
[419704152,1775322635609,-150.0,0.000152,2]
[419704153,1775322635618,-150.0,0.000152,2]
[419704154,1775322635628,-10000.0,0.00015205,2]
[419704155,1775322635637,-1476.53967709,0.00015214,2]
[419704156,1775322635647,-3693.42669262,0.00015222,2]
[419704157,1775322635656,-5888.0,0.00015223,2]
[419704158,1775322635665,-221.29,0.0001523,2]
[419704159,1775322635675,-1472.0,0.00015232,2]
[419704160,1775322635684,-500.0,0.0001524,2]
[419704161,1775322635694,-500.0,0.0001524,2]
[419704162,1775322635703,-500.0,0.0001524,2]
[419704163,1775322635713,-500.0,0.0001524,2]
[419704164,1775322635722,-500.0,0.0001524,2]
[419704165,1775322635731,-500.0,0.0001524,2]
[419704166,1775322635741,-500.0,0.0001524,2]
[419704167,1775322635751,-312.69903259,0.0001524,2]
[419704168,1775322635761,-500.0,0.0001524,2]
[419704169,1775322635770,-500.0,0.0001524,2]
[419704170,1775322635780,-500.0,0.0001524,2]
[419704171,1775322635789,-1000.0,0.0001524,2]
[419704172,1775322635799,-549.0,0.00015243,5]
[419704173,1775322635809,-615.0,0.00015243,5]
[419704174,1775322635819,-1759.0,0.00015243,5]
[419704175,1775322635828,-150.0,0.00015247,2]
[419704176,1775322635838,-150.0,0.00015247,2]
[419704177,1775322635848,-150.0,0.00015247,2]
[419704178,1775322635857,-150.0,0.00015262,2]
[419704179,1775322635866,-150.0,0.00015262,2]
[419704180,1775322635876,-150.0,0.00015273,2]
[419704181,1775322635885,-160.9357,0.000153,2]
[419704182,1775322635894,-160.9357,0.000153,2]
[419704183,1775322635904,-1266.82,0.0001531,2]
[419704184,1775322635913,-1004.34724751,0.00015316,2]
[419704185,1775322635922,-5888.0,0.00015323,2]
[419704186,1775322635932,-150.0,0.00015341,2]
[419704187,1775322635942,-150.0,0.00015341,2]
[419704188,1775322635953,-150.0,0.00015341,2]
[419704189,1775322635962,-150.0,0.00015345,2]
[419704190,1775322635972,-1476.53967709,0.00015351,2]
[419704191,1775322635981,-1569.0,0.0001536,2]
[419704192,1775322635991,-150.0,0.00015365,2]
[419704193,1775322636000,-150.0,0.00015385,2]
[419704194,1775322636009,-150.0,0.00015385,2]
[419704195,1775322636018,-187.78006525,0.00015385,2]
[419704196,1775322636027,-160.9357,0.000154,2]
[419704197,1775322636037,-160.9357,0.000154,2]
[419704198,1775322636047,-5888.0,0.00015415,2]
[419704199,1775322636056,-150.0,0.00015418,2]
[419704200,1775322636068,-1472.0,0.00015423,2]
[419704201,1775322636077,-150.0,0.00015435,2]
[419704202,1775322636088,-150.0,0.00015435,2]
[419704203,1775322636098,-150.0,0.00015435,2]
[419704204,1775322636107,-3693.42669262,0.00015448,2]
[419704205,1775322636116,-215.57,0.00015457,2]
[419704206,1775322636125,-2970.51840497,0.00015461,2]
[419704207,1775322636134,-166.66,0.00015466,2]
[419704208,1775322636143,-150.0,0.00015467,2]
[419704209,1775322636153,-150.0,0.00015467,2]
[419704210,1775322636162,-150.0,0.00015467,2]
[419704211,1775322636172,-2000.0,0.00015473,2]
[419704212,1775322636182,-2000.0,0.00015473,2]
[419704213,1775322636191,-2000.0,0.00015473,2]
[419704214,1775322636200,-2000.0,0.00015473,2]
[419704215,1775322636208,-2000.0,0.00015473,2]
[419704216,1775322636218,-2000.0,0.00015473,2]
[419704217,1775322636227,-2000.0,0.00015473,2]
[419704218,1775322636236,-2000.0,0.00015473,2]
[419704219,1775322636245,-2000.0,0.00015473,2]
[419704220,1775322636254,-2000.0,0.00015473,2]
[419704221,1775322636263,-1476.53967709,0.00015489,2]
[419704222,1775322636273,-150.0,0.00015491,2]
[419704223,1775322636283,-293.16802374,0.00015492,2]
[419704224,1775322636292,-481.95586361,0.00015492,2]
[419704225,1775322636301,-160.9357,0.000155,2]
[419704226,1775322636310,-160.9357,0.000155,2]
[419704227,1775322636320,-768.85683146,0.000155,3]
[419704228,1775322636331,-2725.45,0.00015507,2]
[419704229,1775322636341,-150.0,0.00015508,2]
[419704230,1775322636350,-150.0,0.00015508,2]
[419704231,1775322636360,-2970.51840494,0.0001551,2]
[419704232,1775322636370,-221.31,0.00015513,2]
[419704233,1775322636379,-2000.0,0.00015514,2]
[419704234,1775322636390,-1384.0,0.00015528,2]
[419704235,1775322636400,-150.0,0.00015529,2]
[419704236,1775322636411,-150.0,0.00015529,2]
[419704237,1775322636419,-150.0,0.00015529,2]
[419704238,1775322636429,-435.03081973,0.00015539,2]
[419704239,1775322636438,-26948.7932989,0.00015554,2]
[419704240,1775322636447,-2970.51840494,0.00015559,2]
[419704241,1775322636457,-150.0,0.00015564,2]
[419704242,1775322636466,-500.0,0.00015573,2]
[419704243,1775322636476,-500.0,0.00015573,2]
[419704244,1775322636485,-500.0,0.00015573,2]
[419704245,1775322636494,-500.96174367,0.00015573,2]
[419704246,1775322636504,-500.0,0.00015573,2]
[419704247,1775322636514,-501.1834914,0.00015573,2]
[419704248,1775322636523,-500.0,0.00015573,2]
[419704249,1775322636533,-501.4995107,0.00015573,2]
[419704250,1775322636543,-500.0,0.00015573,2]
[419704251,1775322636554,-186.62,0.00015597,2]
[419704252,1775322636564,-2970.51840494,0.00015607,2]
[419704253,1775322636576,-5888.0,0.00015616,2]
[419704254,1775322636586,-150.0,0.00015624,2]
[419704255,1775322636596,-150.0,0.00015624,2]
[419704256,1775322636605,-150.0,0.00015624,2]
[419704257,1775322636614,-1476.53967709,0.00015626,2]
[419704258,1775322636624,-1600.0,0.0001563,2]
[419704259,1775322636635,-150.0,0.00015631,2]
[419704260,1775322636644,-150.0,0.00015631,2]
[419704261,1775322636654,-150.0,0.00015636,2]
[419704262,1775322636664,-2970.51840494,0.00015656,2]
[419704263,1775322636675,-5888.0,0.00015657,2]
[419704264,1775322636685,-1000.0,0.00015668,2]
[419704265,1775322636694,-3693.42669262,0.00015674,2]
[419704266,1775322636705,-1572.0,0.0001568,2]
[419704267,1775322636715,-563.32898353,0.00015701,2]
[419704268,1775322636724,-2970.51840494,0.00015705,2]
[419704269,1775322636733,-150.0,0.00015709,2]
[419704270,1775322636743,-150.0,0.00015718,2]
[419704271,1775322636752,-150.0,0.00015718,2]
[419704272,1775322636763,-150.0,0.00015718,2]
[419704273,1775322636773,-800.0,0.00015726,2]
[419704274,1775322636783,-500.0,0.00015726,2]
[419704275,1775322636793,-150.0,0.00015733,2]
[419704276,1775322636802,-150.0,0.00015733,2]
[419704277,1775322636811,-1000.0,0.00015738,2]
[419704278,1775322636820,-1384.0,0.00015739,2]
[419704279,1775322636829,-785.54,0.0001574,2]
[419704280,1775322636838,-1710.49,0.00015749,2]
[419704281,1775322636847,-163.539,0.00015749,2]
[419704282,1775322636857,-962.92,0.00015753,2]
[419704283,1775322636866,-2970.51840494,0.00015754,2]
[419704284,1775322636875,-150.0,0.00015754,2]
[419704285,1775322636884,-150.0,0.00015754,2]
[419704286,1775322636894,-1476.53967709,0.00015763,2]
[419704287,1775322636903,-350.0,0.00015775,3]
[419704288,1775322636912,-150.0,0.00015782,2]
[419704289,1775322636921,-502.01968107,0.00015788,2]
[419704290,1775322636930,-184.40015724,0.00015788,2]
[419704291,1775322636940,-952.97866013,0.00015788,2]
[419704292,1775322636949,-1000.0,0.00015788,2]
[419704293,1775322636959,-1002.19050137,0.00015788,2]
[419704294,1775322636968,-1000.0,0.00015788,2]
[419704295,1775322636977,-1000.0,0.00015788,2]
[419704296,1775322636986,-5000.0,0.000158,2]
[419704297,1775322636996,-276.0,0.000158,2]
[419704298,1775322637005,-2000.0,0.00015801,2]
[419704299,1775322637014,-2970.51840494,0.00015802,2]
[419704300,1775322637023,-250.0,0.00015803,2]
[419704301,1775322637032,-150.0,0.00015803,2]
[419704302,1775322637041,-150.0,0.00015803,2]
[419704303,1775322637050,-150.385,0.00015803,2]
[419704304,1775322637059,-150.0,0.00015803,2]
[419704305,1775322637068,-180.914,0.00015803,2]
[419704306,1775322637077,-150.0,0.00015803,2]
[419704307,1775322637086,-150.165,0.00015803,2]
[419704308,1775322637095,-150.0,0.00015803,2]
[419704309,1775322637104,-150.0,0.00015803,2]
[419704310,1775322637114,-150.0,0.00015803,2]
[419704311,1775322637123,-1347.0,0.00015803,2]
[419704312,1775322637132,-3521.0,0.00015803,2]
[419704313,1775322637141,-1046.0,0.00015803,2]
[419704314,1775322637151,-622.0,0.00015803,2]
[419704315,1775322637160,-1277.641,0.00015803,2]
[419704316,1775322637169,-150.0,0.00015803,2]
[419704317,1775322637178,-6019.0,0.00015803,2]
[419704318,1775322637187,-2470.0,0.00015803,2]
[419704319,1775322637196,-150.0,0.00015812,2]
[419704320,1775322637205,-150.0,0.00015812,2]
[419704321,1775322637214,-150.0,0.00015812,2]
[419704322,1775322637223,-1000.0,0.00015813,2]
[419704323,1775322637233,-1384.0,0.00015822,2]
[419704324,1775322637243,-350.0,0.00015837,2]
[419704325,1775322637252,-2000.0,0.0001584,2]
[419704326,1775322637262,-2000.0,0.0001584,2]
[419704327,1775322637273,-2000.0,0.0001584,2]
[419704328,1775322637282,-150.0,0.00015841,2]
[419704329,1775322637295,-2000.0,0.00015841,2]
[419704330,1775322637304,-2000.0,0.00015841,2]
[419704331,1775322637315,-2000.0,0.00015841,2]
[419704332,1775322637324,-2000.0,0.00015841,2]
[419704333,1775322637333,-2000.0,0.00015841,2]
[419704334,1775322637345,-2000.0,0.00015841,2]
[419704335,1775322637355,-2000.0,0.00015841,2]
[419704336,1775322637364,-2000.0,0.00015841,2]
[419704337,1775322637373,-2000.0,0.00015841,2]
[419704338,1775322637382,-1624.42507649,0.00015841,2]
[419704339,1775322637397,-446.57492351,0.00015841,2]
[419704340,1775322637407,-807.84316326,0.00015842,2]
[419704341,1775322637427,-192.15683674,0.00015842,2]
[419704342,1775322637436,-150.0,0.00015845,2]
[419704343,1775322637445,-150.0,0.00015849,2]
[419704344,1775322637455,-2916.73299314,0.00015851,2]
[419704345,1775322637467,-53.7854118,0.00015851,2]
[419704346,1775322637476,-150.0,0.00015855,2]
[419704347,1775322637485,-500.0,0.00015872,2]
[419704348,1775322637495,-200.0,0.00015872,2]
[419704349,1775322637504,-150.0,0.00015877,2]
[419704350,1775322637513,-150.0,0.00015877,2]
[419704351,1775322637523,-150.0,0.00015889,2]
[419704352,1775322637533,-231.31957587,0.0001589,2]
[419704353,1775322637545,-1668.97568377,0.0001589,2]
[419704354,1775322637556,-99.70474036,0.0001589,2]
[419704355,1775322637567,-2725.45,0.00015895,2]
[419704356,1775322637576,-3693.42669262,0.000159,2]
[419704357,1775322637586,-2970.51840494,0.000159,2]
[419704358,1775322637595,-1476.53967709,0.000159,2]
[419704359,1775322637604,-475.22732918,0.000159,2]
[419704360,1775322637614,-1046.56880755,0.000159,2]
[419704361,1775322637624,-2000.0,0.00015901,2]
[419704362,1775322637636,-150.0,0.00015906,2]
[419704363,1775322637647,-150.0,0.00015906,2]
[419704364,1775322637656,-150.0,0.00015906,2]
[419704365,1775322637666,-150.0,0.00015924,2]
[419704366,1775322637676,-150.0,0.00015927,2]
[419704367,1775322637685,-194.72792766,0.00015933,2]
[419704368,1775322637695,-276.0,0.00015941,2]
[419704369,1775322637704,-166.66,0.00015945,2]
[419704370,1775322637715,-1000.0,0.00015949,2]
[419704371,1775322637725,-221.31,0.0001595,2]
[419704372,1775322637734,-1000.0,0.00015953,2]
[419704373,1775322637743,-1384.0,0.00015958,2]
[419704374,1775322637752,-4761.97719213,0.0001596,2]
[419704375,1775322638215,-559.0,0.00012641,2]
[419704376,1775322638224,-501.14397087,0.00015,2]
[419704377,1775322638236,-590.85602913,0.00015,2]
[419704378,1775322638246,-96.30535779,0.00015,2]
[419704379,1775322638260,-557.69464221,0.00015,2]
[419704380,1775322638269,-270.92830672,0.0001596,2]
[419704381,1775322638278,-500.0,0.00015973,2]
[419704382,1775322638288,-500.0,0.00015973,2]
[419704383,1775322638298,-500.84806746,0.00015973,2]
[419704384,1775322638308,-500.0,0.00015973,2]
[419704385,1775322638318,-286.31377904,0.00015973,2]
[419704386,1775322638327,-112.49718979,0.00015973,2]
[419704387,1775322638339,-387.50281021,0.00015973,2]
[419704388,1775322638347,-500.0,0.00015973,2]
[419704389,1775322638357,-12.6021379,0.00015973,2]
[419704390,1775322638612,-347.43508066,0.00015973,2]
[419704391,1775322638632,-139.96278144,0.00015973,2]
[419704392,1775322638643,-500.732846,0.00015973,2]
[419704393,1775322638652,-141.25855499,0.00015973,2]
[419704394,1775322638663,-358.74144501,0.00015973,2]
[419704395,1775322638673,-501.30239513,0.00015973,2]
[419704396,1775322638682,-555.98551723,0.00015973,2]
[419704397,1775322638691,-500.50185113,0.00015973,2]
[419704398,1775322638701,-500.0,0.00015973,2]
[419704399,1775322638710,-337.75579771,0.00015973,2]
[419704400,1775322638720,-500.0,0.00015973,2]
[419704401,1775322638729,-500.0,0.00015973,2]
[419704402,1775322638739,-166.50868334,0.00015973,2]
[419704403,1775322638748,-1384.0,0.00015974,2]
[419704404,1775322638758,-150.0,0.00015974,2]
[419704405,1775322638767,-6013.0885646,0.00015976,2]
[419704406,1775322638777,-154.76030198,0.00015984,2]
[419704407,1775322638786,-1000.0,0.00015984,2]
[419704408,1775322638795,-1000.0,0.00015984,2]
[419704409,1775322638805,-1000.0,0.00015984,2]
[419704410,1775322638815,-728.376,0.00015984,2]
[419704411,1775322638824,-243.01876727,0.0001599,2]
[419704412,1775322638833,-243.01876727,0.0001599,2]
[419704413,1775322638842,-243.01876727,0.0001599,2]
[419704414,1775322638851,-605.34792929,0.00015995,2]
[419704415,1775322638878,-778.65207071,0.00015995,2]
[419704416,1775322638887,-198.15545373,0.00015996,2]
[419704417,1775322638896,-150.0,0.00015996,2]
[419704419,1775322638907,-5896.0506304,0.00015999,2]
[419704420,1775322638917,-421.62302696,0.00015999,2]
[419704421,1775322638926,-150.0,0.00016,2]
[419704422,1775322638935,-153.17679523,0.00016,2]
[419704423,1775322638944,-152.51587458,0.00016,2]
[419704424,1775322638954,-150.0,0.00016,2]
[419704425,1775322638963,-150.0,0.00016,2]
[419704426,1775322638972,-150.0,0.00016,2]
[419704427,1775322638982,-150.0,0.00016,2]
[419704428,1775322638991,-154.20526906,0.00016,2]
[419704429,1775322639000,-153.23279417,0.00016,2]
[419704430,1775322639010,-153.27019078,0.00016,2]
[419704431,1775322639019,-150.0,0.00016,2]
[419704432,1775322639028,-11976.18844842,0.00016,2]
[419704433,1775322639040,-4164.96295552,0.00016,2]
[419704434,1775322640109,-292.82465458,0.00014475,2]
[419704435,1775322640118,-151.0,0.00014646,2]
[419704436,1775322640128,-551.79836274,0.0001596,2]
[419704437,1775322640139,-263.20163726,0.0001596,2]
[419704438,1775322640149,-1904.70999714,0.00016,2]
[419704439,1775322640161,-1488.30899003,0.00016,2]
[419704440,1775322640172,-2088.51767809,0.00016,2]
[419704443,1775322641085,-925.0,0.00015803,2]
[419704444,1775322641095,-7408.40475353,0.00016,2]
[419704445,1775322641242,-1418.52000001,0.00016,2]
[419704446,1775322641298,-184886.40321865,0.00016,2]
[419704447,1775322641308,-354.905,0.00016,2]